bitfinex/quotes_BTCUSD_20250711
["timestamp","ask_amount","ask_price","bid_price","bid_amount"]
[1752258678193,0.03394969,117270.0,117260.0,0.09040993]
[1752258678608,0.03601969,117270.0,117260.0,0.09040993]
[1752258679029,0.48705182,117270.0,117260.0,0.08842993]
[1752258679239,0.55549809,117270.0,117260.0,0.08842993]
[1752258679674,0.55549809,117270.0,117260.0,0.08942993]
[1752258680526,0.55549809,117270.0,117260.0,0.08642993]
[1752258680984,0.55549809,117270.0,117260.0,0.08742993]
[1752258682276,0.03924969,117270.0,117260.0,0.08742993]
[1752258682479,0.48705182,117270.0,117260.0,0.08742993]
[1752258684154,0.03924969,117270.0,117260.0,0.08958993]
[1752258684377,0.03394969,117270.0,117260.0,0.09172194]
[1752258685013,0.03394969,117270.0,117260.0,0.08958993]
[1752258685874,0.03394969,117270.0,117260.0,0.09172194]
[1752258687035,0.03394969,117270.0,117260.0,0.08958993]
[1752258687256,0.03924969,117270.0,117260.0,0.08958993]
[1752258689790,0.48705182,117270.0,117260.0,0.08958993]
[1752258689990,0.54008182,117270.0,117260.0,0.002]
[1752258690284,0.60852809,117270.0,117260.0,0.002]
[1752258690482,0.94852809,117270.0,117260.0,0.002]
[1752258690914,0.42924969,117270.0,117260.0,0.08742993]
[1752258691119,0.87705182,117270.0,117260.0,0.08542993]
[1752258691332,0.82705182,117270.0,117260.0,0.08542993]
[1752258691532,0.82705182,117270.0,117260.0,0.34894993]
[1752258691750,0.03601969,117270.0,117260.0,0.35110993]
[1752258691954,0.08601969,117270.0,117260.0,0.35110993]
[1752258692174,0.03601969,117270.0,117260.0,0.35110993]
[1752258692364,0.08601969,117270.0,117260.0,0.35110993]
[1752258692745,0.03601969,117270.0,117260.0,0.35110993]
[1752258692951,0.08601969,117270.0,117260.0,0.35110993]
[1752258693127,0.03601969,117270.0,117260.0,0.35110993]
[1752258693931,0.08601969,117270.0,117260.0,0.35210993]
[1752258694131,0.08601969,117270.0,117260.0,0.35310993]
[1752258695822,0.03601969,117270.0,117260.0,0.35310993]
[1752258696064,0.03394969,117270.0,117260.0,0.35310993]
[1752258696273,0.00214969,117270.0,117260.0,0.35609993]
[1752258698635,0.00214969,117270.0,117260.0,0.55906107]
[1752258698848,0.00214969,117270.0,117260.0,1.01313458]
[1752258699265,0.00214969,117270.0,117260.0,0.57611681]
[1752258699702,0.00214969,117270.0,117260.0,1.07615988]
[1752258700124,0.00214969,117270.0,117260.0,1.07815988]
[1752258700258,0.00214969,117270.0,117260.0,1.09270073]
[1752258701702,0.00214969,117270.0,117260.0,1.11825973]
[1752258702605,0.00214969,117270.0,117260.0,1.11725973]
[1752258702736,0.002,117290.0,117280.0,0.0318]
[1752258702949,0.002,117290.0,117280.0,0.38480158]
[1752258703169,0.002,117290.0,117280.0,0.38266993]
[1752258703368,0.002,117290.0,117280.0,0.38565993]
[1752258704150,0.002,117290.0,117280.0,0.39454204]
[1752258704356,0.002,117290.0,117280.0,0.58412708]
[1752258704558,0.002,117290.0,117280.0,1.08516725]
[1752258704756,1.0,117300.0,117290.0,0.96208203]
[1752258704879,1.0,117300.0,117290.0,1.05266196]
[1752258705082,0.9914842,117300.0,117290.0,1.40720281]
[1752258705549,0.9829684,117300.0,117290.0,1.43275481]
[1752258705957,0.9744526,117300.0,117290.0,1.43275481]
[1752258706390,0.9659368,117300.0,117290.0,1.43275481]
[1752258706599,0.957421,117300.0,117290.0,1.43275481]
[1752258707012,0.9489052,117300.0,117290.0,1.43275481]
[1752258707217,0.9489052,117300.0,117290.0,1.43375481]
[1752258707379,0.9403894,117300.0,117290.0,1.43475481]
[1752258707822,0.9318736,117300.0,117290.0,1.43475481]
[1752258708018,0.9318736,117300.0,117290.0,1.46044325]
[1752258708225,0.92336021,117300.0,117290.0,1.46896861]
[1752258708621,0.91484682,117300.0,117290.0,1.46896861]
[1752258709030,0.90633343,117300.0,117290.0,1.46896861]
[1752258709635,0.89782004,117300.0,117290.0,1.46896861]
[1752258710053,0.88930665,117300.0,117290.0,1.46896861]
[1752258710416,0.88079326,117300.0,117290.0,1.46896861]
[1752258710617,0.88079326,117300.0,117290.0,1.46796861]
[1752258710859,0.88079326,117300.0,117290.0,1.46696861]
[1752258711278,0.88079326,117300.0,117290.0,1.47496861]
[1752258713688,0.87227987,117300.0,117290.0,1.47496861]
[1752258713922,0.86376648,117300.0,117290.0,1.47496861]
[1752258714148,0.84826392,117300.0,117290.0,1.91198638]
[1752258714386,0.78289761,117300.0,117290.0,3.64167636]
[1752258714620,0.73201855,117300.0,117290.0,2.38902661]
[1752258714882,0.69371125,117300.0,117290.0,2.38902661]
[1752258715156,0.68519852,117300.0,117290.0,2.38902661]
[1752258715654,0.64689122,117300.0,117290.0,2.64894661]
[1752258716106,0.63837849,117300.0,117290.0,2.65294661]
[1752258716313,0.60007119,117300.0,117290.0,2.73762661]
[1752258716535,0.60007119,117300.0,117290.0,2.64794661]
[1752258716749,0.59155846,117300.0,117290.0,2.65194661]
[1752258716985,0.56176389,117300.0,117290.0,2.65194661]
[1752258717209,0.55325116,117300.0,117290.0,2.65194661]
[1752258717680,0.54473843,117300.0,117290.0,2.35497661]
[1752258717898,0.5362257,117300.0,117290.0,2.35497661]
[1752258718115,0.5362257,117300.0,117290.0,2.65194661]
[1752258718343,0.4979184,117300.0,117290.0,2.65194661]
[1752258718755,0.48940567,117300.0,117290.0,2.65194661]
[1752258718964,0.48940567,117300.0,117290.0,2.35497661]
[1752258719157,0.48089294,117300.0,117290.0,2.65194661]
[1752258719372,0.48089294,117300.0,117290.0,1.72334776]
[1752258719786,0.48089294,117300.0,117290.0,1.73788861]
[1752258720415,0.47238021,117300.0,117290.0,3.57020138]
[1752258720617,0.47238021,117300.0,117290.0,3.13318361]
[1752258720857,0.46386748,117300.0,117290.0,3.13318361]
[1752258721197,0.45535475,117300.0,117290.0,3.13318361]
[1752258721608,0.44684261,117300.0,117290.0,3.13318361]
[1752258722061,0.43833047,117300.0,117290.0,3.13318361]
[1752258722463,0.42981833,117300.0,117290.0,3.13318361]
[1752258722885,0.42130619,117300.0,117290.0,3.13318361]
[1752258723255,0.41279405,117300.0,117290.0,3.13318361]
[1752258723651,0.40428191,117300.0,117290.0,3.13318361]
[1752258724056,0.39576977,117300.0,117290.0,3.13318361]
[1752258724499,0.38252263,117300.0,117290.0,3.57020138]
[1752258724704,0.31852697,117300.0,117290.0,3.59520138]
[1752258724855,0.3037936,117300.0,117290.0,3.6341836]
[1752258725055,0.28632234,117300.0,117290.0,3.61450662]
[1752258725282,0.24106441,117300.0,117290.0,3.61450662]
[1752258725512,0.24106441,117300.0,117290.0,3.16783623]
[1752258725714,0.23255227,117300.0,117290.0,3.14190423]
[1752258725931,0.19424763,117300.0,117290.0,2.51898823]
[1752258726157,0.19424763,117300.0,117290.0,2.51498823]
[1752258726377,0.18573549,117300.0,117290.0,2.51998823]
[1752258726625,0.15594299,117300.0,117290.0,2.54798823]
[1752258726858,0.14743085,117300.0,117290.0,2.54798823]
[1752258727288,0.10912862,117300.0,117290.0,2.5376999]
[1752258727769,0.10061702,117300.0,117290.0,2.5376999]
[1752258727981,0.06231479,117300.0,117290.0,2.5376999]
[1752258728475,0.05380319,117300.0,117290.0,2.5376999]
[1752258728689,0.02401256,117300.0,117290.0,2.5376999]
[1752258728908,0.01550096,117300.0,117290.0,2.53736247]
[1752258729129,0.002,117310.0,117300.0,0.59758839]
[1752258729334,0.0364,117330.0,117320.0,0.49903164]
[1752258729510,0.03856,117330.0,117320.0,0.85586475]
[1752258729915,0.03856,117330.0,117320.0,1.29224681]
[1752258730442,0.03870969,117330.0,117320.0,1.29224681]
[1752258730646,0.03970969,117330.0,117320.0,1.29224681]
[1752258730845,0.03970969,117330.0,117320.0,1.29422681]
[1752258731669,0.03660969,117330.0,117320.0,1.29422681]
[1752258731884,0.00314969,117330.0,117320.0,1.29422681]
[1752258732012,0.00314969,117330.0,117320.0,1.29728681]
[1752258735715,0.00314969,117330.0,117320.0,1.29422681]
[1752258735948,0.03990969,117330.0,117320.0,0.55889482]
[1752258736180,0.03990969,117330.0,117320.0,0.85586482]
[1752258736407,0.00840969,117330.0,117320.0,1.29422688]
[1752258736657,0.00314969,117330.0,117320.0,1.30333788]
[1752258737406,0.00314969,117330.0,117320.0,1.30652788]
[1752258738270,0.00314969,117330.0,117320.0,1.30333788]
[1752258741757,0.03604969,117330.0,117320.0,1.30333788]
[1752258741975,0.04109969,117330.0,117320.0,1.30333788]
[1752258742179,0.03812969,117330.0,117320.0,1.30333788]
[1752258742377,0.03604969,117330.0,117320.0,1.30333788]
[1752258743033,0.04109969,117330.0,117320.0,1.30333788]
[1752258743247,0.03812969,117330.0,117320.0,1.30333788]
[1752258744008,0.04109969,117330.0,117320.0,1.30333788]
[1752258744238,0.03812969,117330.0,117320.0,1.30333788]
[1752258744451,0.03604969,117330.0,117320.0,1.30333788]
[1752258744678,0.03812969,117330.0,117320.0,1.30333788]
[1752258744886,0.04109969,117330.0,117320.0,1.30333788]
[1752258746202,0.04109969,117330.0,117320.0,0.84792924]
[1752258746413,0.04109969,117330.0,117320.0,0.86497582]
[1752258746626,0.04109969,117330.0,117320.0,0.85645264]
[1752258746865,0.04109969,117330.0,117320.0,0.84792924]
[1752258747071,0.04109969,117330.0,117320.0,0.85645264]
[1752258747289,0.04109969,117330.0,117320.0,0.85043511]
[1752258747518,0.04109969,117330.0,117320.0,0.85895829]
[1752258748817,0.04109969,117330.0,117320.0,0.85043526]
[1752258749031,0.04109969,117330.0,117320.0,0.99439093]
[1752258749263,0.04109969,117330.0,117320.0,1.00291462]
[1752258749485,0.04109969,117330.0,117320.0,0.87641853]
[1752258749693,0.04109969,117330.0,117320.0,0.99439093]
[1752258749920,0.04109969,117330.0,117320.0,0.35742093]
[1752258750140,0.48801354,117330.0,117320.0,0.34830993]
[1752258750999,0.04109969,117330.0,117320.0,0.34830993]
[1752258752537,0.04109969,117330.0,117320.0,0.96569769]
[1752258752970,0.04109969,117330.0,117320.0,0.79522378]
[1752258754701,0.04109969,117330.0,117320.0,0.34830993]
[1752258756995,0.04109969,117330.0,117320.0,0.79522378]
[1752258765619,0.04109969,117330.0,117320.0,0.79726378]
[1752258766233,0.04109969,117330.0,117320.0,0.96773769]
[1752258766452,0.03604969,117330.0,117320.0,1.031755]
[1752258766658,0.03604969,117330.0,117320.0,1.03175485]
[1752258766870,0.03604969,117330.0,117320.0,1.04027825]
[1752258767077,0.03604969,117330.0,117320.0,1.0402781]
[1752258767280,0.03604969,117330.0,117320.0,1.03175485]
[1752258767497,0.03604969,117330.0,117320.0,1.02323138]
[1752258767705,0.03604969,117330.0,117320.0,1.03175493]
[1752258768286,0.03604969,117330.0,117320.0,1.02323138]
[1752258768490,0.03604969,117330.0,117320.0,0.85275747]
[1752258769109,0.04111969,117330.0,117320.0,0.84423378]
[1752258769523,0.04111969,117330.0,117320.0,0.84219378]
[1752258769735,0.04111969,117330.0,117320.0,0.39527993]
[1752258772974,0.04111969,117330.0,117320.0,0.39734993]
[1752258773183,0.03805969,117330.0,117320.0,1.02326124]
[1752258773380,0.03805969,117330.0,117320.0,0.84426378]
[1752258773592,0.03805969,117330.0,117320.0,0.85278747]
[1752258774014,0.03805969,117330.0,117320.0,1.02326138]
[1752258774222,0.03805969,117330.0,117320.0,0.84426378]
[1752258774839,0.03805969,117330.0,117320.0,1.01473769]
[1752258775040,0.03805969,117330.0,117320.0,1.02326124]
[1752258775267,0.03805969,117330.0,117320.0,0.84426378]
[1752258775410,0.03604969,117330.0,117320.0,0.84426378]
[1752258776689,0.03604969,117330.0,117320.0,1.02326124]
[1752258776859,0.03604969,117330.0,117320.0,1.02326131]
[1752258777224,0.03604969,117330.0,117320.0,0.84426378]
[1752258777696,0.03604969,117330.0,117320.0,1.02326131]
[1752258777896,0.03604969,117330.0,117320.0,0.84426378]
[1752258778094,0.03604969,117330.0,117320.0,1.02326124]
[1752258778271,0.00314969,117330.0,117320.0,1.03482464]
[1752258778481,0.032,117340.0,117330.0,0.4929974]
[1752258778686,0.032,117340.0,117330.0,1.29301118]
[1752258778687,0.00044985,117340.0,117330.0,1.29301118]
[1752258779683,0.00144985,117340.0,117330.0,1.29301118]
[1752258779880,0.00144985,117340.0,117330.0,1.18609733]
[1752258780079,0.00144985,117340.0,117330.0,1.63301118]
[1752258780291,0.0338,117350.0,117340.0,0.23445882]
[1752258780446,0.002,117350.0,117340.0,1.05753518]
[1752258781357,0.0318,117360.0,117350.0,0.44599399]
[1752258781562,0.0342,117370.0,117360.0,0.2429473]
[1752258781713,0.0342,117370.0,117360.0,1.04292108]
[1752258781921,0.0024,117370.0,117360.0,1.38292108]
[1752258782596,0.0024,117370.0,117360.0,1.35431959]
[1752258782800,0.03927,117370.0,117360.0,1.36284038]
[1752258783055,0.03927,117370.0,117360.0,1.18390378]
[1752258783276,0.03927,117370.0,117360.0,0.73698993]
[1752258783486,0.03927,117370.0,117360.0,0.68794993]
[1752258783632,0.03927,117370.0,117360.0,0.93794993]
[1752258784259,0.04127,117370.0,117360.0,1.38486378]
[1752258784724,0.04127,117370.0,117360.0,0.93794993]
[1752258785055,0.04127,117370.0,117360.0,0.93894993]
[1752258785486,0.04127,117370.0,117360.0,0.93794993]
[1752258785698,0.04127,117370.0,117360.0,0.59794993]
[1752258786546,0.04127,117370.0,117360.0,0.63260844]
[1752258789314,0.03821,117370.0,117360.0,1.08159229]
[1752258789499,0.002,117370.0,117360.0,1.76597316]
[1752258789738,0.002,117370.0,117360.0,1.31022152]
[1752258789941,0.002,117370.0,117360.0,1.31570209]
[1752258790151,0.002,117370.0,117360.0,1.32422237]
[1752258790374,0.002,117370.0,117360.0,1.32422244]
[1752258790587,0.002,117370.0,117360.0,1.30718159]
[1752258790792,0.00306,117380.0,117370.0,0.44691385]
[1752258790993,0.0052196,117380.0,117370.0,0.79478378]
[1752258791416,0.0052196,117380.0,117370.0,0.34786993]
[1752258791996,0.0072196,117380.0,117370.0,0.34786993]
[1752258792360,0.0230196,117380.0,117370.0,0.34786993]
[1752258793662,0.0388196,117380.0,117370.0,0.34786993]
[1752258795748,0.0388196,117380.0,117370.0,0.52034122]
[1752258795890,0.0024,117390.0,117380.0,0.17890603]
[1752258796097,0.00252746,117390.0,117380.0,1.04681378]
[1752258796329,0.00252746,117390.0,117380.0,1.27268988]
[1752258796552,0.00252746,117390.0,117380.0,1.28972833]
[1752258796730,0.00252746,117390.0,117380.0,1.30121737]
[1752258796943,0.00252746,117390.0,117380.0,1.28120914]
[1752258797144,0.00252746,117390.0,117380.0,0.64686993]
[1752258797482,0.00552746,117390.0,117380.0,1.09378378]
[1752258798317,0.00552746,117390.0,117380.0,0.64686993]
[1752258798517,0.02142746,117390.0,117380.0,1.09378378]
[1752258798719,0.02142746,117390.0,117380.0,0.64686993]
[1752258799146,0.02142746,117390.0,117380.0,0.83429515]
[1752258799346,0.02142746,117390.0,117380.0,0.82577603]
[1752258799347,0.00552746,117390.0,117380.0,0.82577603]
[1752258799653,0.02112746,117390.0,117380.0,0.83429529]
[1752258799869,0.02112746,117390.0,117380.0,0.64686993]
[1752258800034,0.02112746,117390.0,117380.0,1.09378378]
[1752258800235,0.02112746,117390.0,117380.0,0.64686993]
[1752258800474,0.04267746,117390.0,117380.0,0.64686993]
[1752258803411,0.03954746,117390.0,117380.0,0.64686993]
[1752258803833,0.00552746,117390.0,117380.0,0.82577596]
[1752258804035,0.00552746,117390.0,117380.0,0.64686993]
[1752258804443,0.03632746,117390.0,117380.0,0.64686993]
[1752258805098,0.03632746,117390.0,117380.0,0.8172567]
[1752258805270,0.03632746,117390.0,117380.0,0.64686993]
[1752258807213,0.04147746,117390.0,117380.0,0.34782993]
[1752258807413,0.48839131,117390.0,117380.0,0.34782993]
[1752258807616,0.04147746,117390.0,117380.0,0.34782993]
[1752258809486,0.48839131,117390.0,117380.0,0.34782993]
[1752258810375,0.04147746,117390.0,117380.0,0.34782993]
[1752258811234,0.48839131,117390.0,117380.0,0.34782993]
[1752258812069,0.04147746,117390.0,117380.0,0.34782993]
[1752258812726,0.04147746,117390.0,117380.0,0.34987993]
[1752258813275,0.04147746,117390.0,117380.0,0.35839926]
[1752258813483,0.04147746,117390.0,117380.0,0.34987993]
[1752258813699,0.03632746,117390.0,117380.0,0.52878596]
[1752258813898,0.00552746,117390.0,117380.0,0.34987993]
[1752258814124,0.03682746,117390.0,117380.0,0.34987993]
[1752258816034,0.03682746,117390.0,117380.0,0.35839926]
[1752258816260,0.03682746,117390.0,117380.0,0.52878589]
[1752258816490,0.00552746,117390.0,117380.0,0.5202667]
[1752258816708,0.00552746,117390.0,117380.0,0.34987993]
[1752258816929,0.00552746,117390.0,117380.0,0.35839926]
[1752258817187,0.00552746,117390.0,117380.0,0.53730529]
[1752258817393,0.00552746,117390.0,117380.0,0.53175603]
[1752258817828,0.00552746,117390.0,117380.0,0.35839926]
[1752258818084,0.00552746,117390.0,117380.0,0.53730515]
[1752258818278,0.00552746,117390.0,117380.0,0.54027522]
[1752258818799,0.0168,117420.0,117400.0,0.19591023]
[1752258818996,0.0168,117420.0,117410.0,1.22770339]
[1752258819206,0.01931848,117420.0,117410.0,0.79014734]
[1752258819387,0.00089848,117420.0,117410.0,1.64106471]
[1752258819625,0.00089848,117420.0,117410.0,1.67276471]
[1752258820248,0.00189848,117420.0,117410.0,1.67276471]
[1752258820431,0.00089848,117420.0,117410.0,1.67276471]
[1752258820749,0.00189848,117420.0,117410.0,1.33276471]
[1752258821449,0.00189848,117420.0,117410.0,1.32424806]
[1752258821612,0.46693233,117420.0,117410.0,0.34979993]
[1752258821858,0.48506233,117420.0,117410.0,0.34774993]
[1752258822827,0.48497975,117420.0,117410.0,0.34774993]
[1752258828017,0.0380659,117420.0,117410.0,0.34774993]
[1752258828220,0.48497975,117420.0,117410.0,0.34774993]
[1752258830233,0.87800975,117420.0,117410.0,0.34766993]
[1752258831117,0.87700975,117420.0,117410.0,0.34766993]
[1752258833830,0.87800975,117420.0,117410.0,0.34766993]
[1752258834178,0.87700975,117420.0,117410.0,0.34766993]
[1752258834377,0.87800975,117420.0,117410.0,0.34766993]
[1752258838594,1.00912975,117420.0,117410.0,0.34766993]
[1752258842917,0.87800975,117420.0,117410.0,0.34766993]
[1752258843096,1.00912975,117420.0,117410.0,0.34766993]
[1752258843282,0.87800975,117420.0,117410.0,0.34766993]
[1752258843470,1.00912975,117420.0,117410.0,0.34766993]
[1752258844464,0.87497975,117420.0,117410.0,0.34766993]
[1752258844668,0.87800975,117420.0,117410.0,0.34766993]
[1752258853207,0.82184975,117420.0,117410.0,0.34970993]
[1752258853677,0.87490975,117420.0,117410.0,0.34970993]
[1752258854533,0.87490975,117420.0,117410.0,0.34766993]
[1752258854964,0.87184975,117420.0,117410.0,0.34970993]
[1752258855549,0.0018159,117420.0,117410.0,0.79969378]
[1752258855749,0.0018159,117420.0,117410.0,0.83149378]
[1752258856180,0.0008159,117420.0,117410.0,0.38457993]
[1752258856614,0.0018159,117420.0,117410.0,0.38457993]
[1752258856742,0.0028159,117420.0,117410.0,0.38457993]
[1752258857352,0.0008159,117420.0,117410.0,0.38457993]
[1752258858157,0.0008159,117420.0,117410.0,0.43467993]
[1752258858596,0.0018159,117420.0,117410.0,0.43467993]
[1752258861119,0.0018159,117420.0,117410.0,0.40287993]
[1752258861322,0.44872975,117420.0,117410.0,0.40287993]
[1752258861565,0.46719975,117420.0,117410.0,0.40287993]
[1752258863199,0.44872975,117420.0,117410.0,0.40287993]
[1752258863672,0.0018159,117420.0,117410.0,0.40287993]
[1752258867123,0.48249975,117420.0,117410.0,0.39776993]
[1752258867394,0.48561975,117420.0,117410.0,0.39776993]
[1752258869245,0.0018159,117420.0,117410.0,0.40309993]
[1752258869816,0.0018159,117420.0,117410.0,0.43529993]
[1752258872424,0.0018159,117420.0,117410.0,1.05255702]
[1752258872634,0.0018159,117420.0,117410.0,0.88221378]
[1752258874892,0.0018159,117420.0,117410.0,0.43529993]
[1752258876021,0.0018159,117420.0,117410.0,0.41899993]
[1752258876208,0.0018159,117420.0,117410.0,0.40309993]
[1752258886610,0.0018159,117420.0,117410.0,0.85001378]
[1752258887108,0.0831,117430.0,117420.0,0.0482841]
[1752258887322,0.08521946,117430.0,117420.0,0.13570403]
[1752258888410,0.08621946,117430.0,117420.0,0.13570403]
[1752258888615,0.08721946,117430.0,117420.0,0.13875403]
[1752258889273,0.08721946,117430.0,117420.0,0.13570403]
[1752258891508,0.08934886,117430.0,117420.0,0.13570403]
[1752258892049,0.53927271,117430.0,117420.0,0.13570403]
[1752258892223,0.53714331,117430.0,117420.0,0.13371403]
[1752258905920,0.53714331,117430.0,117420.0,0.12231403]
[1752258908888,0.09022946,117430.0,117420.0,0.12231403]
[1752258909114,0.53927271,117430.0,117420.0,0.12231403]
[1752258909268,0.53714331,117430.0,117420.0,0.12231403]
[1752258917319,0.88017331,117430.0,117420.0,0.12231403]
[1752258918135,1.62646421,117430.0,117420.0,0.01240957]
[1752258918368,0.09947085,117410.0,117400.0,0.01330013]
[1752258918582,1.46848795,117410.0,117400.0,0.01330013]
[1752258918758,1.46937855,117410.0,117400.0,0.01330013]
[1752258919177,1.49487789,117410.0,117400.0,0.01330013]
[1752258919810,1.49687789,117410.0,117400.0,0.01330013]
[1752258921403,0.0819,117390.0,117380.0,0.002]
[1752258921663,1.00191385,117390.0,117380.0,0.08742993]
[1752258921900,1.00493385,117390.0,117380.0,0.08742993]
[1752258922142,0.87091385,117390.0,117380.0,0.08951993]
[1752258922367,0.52403,117400.0,117380.0,0.10842993]
[1752258922591,0.05,117390.0,117380.0,0.03889848]
[1752258922841,0.05,117390.0,117380.0,0.12532841]
[1752258923073,0.49904325,117390.0,117380.0,0.12632841]
[1752258923288,0.44691385,117390.0,117380.0,0.12632841]
[1752258923479,0.49691385,117390.0,117380.0,0.11092841]
[1752258923768,0.49691385,117390.0,117380.0,0.10992841]
[1752258924217,0.49691385,117390.0,117380.0,0.10892841]
[1752258924434,0.49901385,117390.0,117380.0,0.10892841]
[1752258924656,0.53393385,117390.0,117380.0,0.08892841]
[1752258925987,0.54284153,117390.0,117380.0,0.08892841]
[1752258927450,0.67384153,117390.0,117380.0,0.08892841]
[1752258927658,0.22692768,117390.0,117380.0,0.08892841]
[1752258927914,0.67384153,117390.0,117380.0,0.08892841]
[1752258929625,0.09592768,117390.0,117380.0,0.08892841]
[1752258929841,0.65804153,117390.0,117380.0,0.08892841]
[1752258934925,0.52704153,117390.0,117380.0,0.08892841]
[1752258935138,0.65804153,117390.0,117380.0,0.08892841]
[1752258936100,0.50792153,117390.0,117380.0,0.09412841]
[1752258936305,0.00890768,117390.0,117380.0,0.09412841]
[1752258936517,0.05890768,117390.0,117380.0,0.12452841]
[1752258936756,0.49904325,117390.0,117380.0,0.10932841]
[1752258936951,0.49691385,117390.0,117380.0,0.10932841]
[1752258937586,0.05,117390.0,117380.0,0.10932841]
[1752258937843,0.05,117390.0,117380.0,0.12472841]
[1752258938030,0.0521294,117390.0,117380.0,0.12472841]
[1752258938278,0.0521294,117390.0,117380.0,0.10932841]
[1752258938610,0.49904325,117390.0,117380.0,0.10932841]
[1752258938831,0.49691385,117390.0,117380.0,0.10932841]
[1752258939467,0.49691385,117390.0,117380.0,0.09412841]
[1752258939697,0.50553661,117390.0,117380.0,0.09412841]
[1752258939899,0.50763661,117390.0,117380.0,0.09412841]
[1752258942946,0.45763661,117390.0,117380.0,0.09412841]
[1752258943180,0.50763661,117390.0,117380.0,0.09412841]
[1752258943420,0.50553661,117390.0,117380.0,0.09412841]
[1752258943590,0.50553661,117390.0,117380.0,0.10982841]
[1752258943970,0.50553661,117390.0,117380.0,0.09412841]
[1752258944177,0.50763661,117390.0,117380.0,0.09412841]
[1752258948211,0.07998276,117390.0,117380.0,0.08892841]
[1752258948417,0.54422601,117390.0,117380.0,0.08892841]
[1752258948616,0.52689661,117390.0,117380.0,0.08892841]
[1752258948953,0.06378276,117390.0,117380.0,0.09105841]
[1752258949150,0.50766601,117390.0,117380.0,0.10984841]
[1752258949276,0.45553661,117390.0,117380.0,0.10984841]
[1752258949493,0.50553661,117390.0,117380.0,0.10984841]
[1752258949895,0.45553661,117390.0,117380.0,0.10984841]
[1752258950130,0.50768661,117390.0,117380.0,0.10984841]
[1752258950357,0.50768661,117390.0,117380.0,0.09404841]
[1752258950892,0.45768661,117390.0,117380.0,0.09404841]
[1752258951240,0.50768661,117390.0,117380.0,0.09404841]
[1752258956512,0.45768661,117390.0,117380.0,0.09404841]
[1752258956649,0.50768661,117390.0,117380.0,0.09404841]
[1752258957545,0.45768661,117390.0,117380.0,0.09404841]
[1752258957750,0.50768661,117390.0,117380.0,0.09404841]
[1752258960009,0.50768661,117390.0,117380.0,0.09105841]
[1752258960417,0.54244661,117390.0,117380.0,0.08892841]
[1752258960814,0.34609,117400.0,117380.0,0.12454841]
[1752258961022,0.16565,117420.0,117390.0,0.69675378]
[1752258961171,0.05,117410.0,117400.0,0.01829]
[1752258961382,0.0542794,117410.0,117400.0,0.08755993]
[1752258961578,0.50119325,117410.0,117400.0,0.08755993]
[1752258961801,0.49906385,117410.0,117400.0,0.08755993]
[1752258961986,0.44906385,117410.0,117400.0,0.08755993]
[1752258962188,0.49906385,117410.0,117400.0,0.08755993]
[1752258962771,0.06286135,117410.0,117400.0,0.08755993]
[1752258962983,0.002,117410.0,117400.0,0.12104993]
[1752258964589,0.0521294,117420.0,117400.0,0.12104993]
[1752258964850,0.0521294,117420.0,117410.0,0.08841993]
[1752258965068,0.0521294,117420.0,117410.0,0.09054993]
[1752258965197,0.0021294,117420.0,117410.0,0.09054993]
[1752258965405,0.0042794,117420.0,117410.0,0.09054993]
[1752258965608,0.0631176,117420.0,117410.0,0.09054993]
[1752258966007,0.0542794,117420.0,117410.0,0.09054993]
[1752258966209,0.0052794,117420.0,117410.0,0.09054993]
[1752258966418,0.0542794,117420.0,117410.0,0.09054993]
[1752258966626,0.002,117430.0,117410.0,0.69998378]
[1752258966851,0.002,117430.0,117410.0,0.25306993]
[1752258966852,0.00883955,117420.0,117410.0,0.25306993]
[1752258967139,0.05,117420.0,117410.0,0.25306993]
[1752258967353,0.78891385,117430.0,117410.0,0.25306993]
[1752258967577,0.49891385,117430.0,117410.0,0.25306993]
[1752258967798,0.002,117420.0,117410.0,0.25306993]
[1752258968220,0.0041294,117420.0,117410.0,0.23766993]
[1752258968440,0.45104325,117420.0,117410.0,0.23766993]
[1752258968644,0.44691385,117420.0,117410.0,0.23766993]
[1752258968852,0.54403456,117430.0,117410.0,0.23766993]
[1752258969054,0.44904325,117420.0,117410.0,0.23766993]
[1752258969232,0.44691385,117420.0,117410.0,0.23766993]
[1752258969414,0.44791385,117420.0,117410.0,0.23766993]
[1752258969614,0.44691385,117420.0,117410.0,0.23766993]
[1752258969826,0.44891385,117420.0,117410.0,0.23766993]
[1752258970004,0.45412385,117420.0,117410.0,0.21634993]
[1752258970210,0.46722385,117420.0,117410.0,0.21634993]
[1752258971026,0.48302385,117420.0,117410.0,0.21634993]
[1752258971227,0.46722385,117420.0,117410.0,0.21634993]
[1752258972371,0.46822385,117420.0,117410.0,0.21634993]
[1752258972573,0.46922385,117420.0,117410.0,0.21634993]
[1752258975525,0.45412385,117420.0,117410.0,0.21847993]
[1752258975734,0.45106385,117420.0,117410.0,0.21847993]
[1752258975937,0.45106385,117420.0,117410.0,0.22153993]
[1752258977815,0.45106385,117420.0,117410.0,0.21847993]
[1752258979752,0.47027385,117420.0,117410.0,0.21847993]
[1752258979939,0.48597385,117420.0,117410.0,0.21634993]
[1752258981683,0.47027385,117420.0,117410.0,0.21634993]
[1752258982858,0.45417385,117420.0,117410.0,0.21834993]
[1752258984898,0.00726,117420.0,117410.0,0.21634993]
[1752258985093,0.45319325,117420.0,117410.0,0.21834993]
[1752258985294,0.45106385,117420.0,117410.0,0.21834993]
[1752258989372,0.47007385,117420.0,117410.0,0.21634993]
[1752258992185,0.45417385,117420.0,117410.0,0.21634993]
[1752258992412,0.45106385,117420.0,117410.0,0.21834993]
[1752258992618,0.45106385,117420.0,117410.0,0.22140993]
[1752258994790,0.45106385,117420.0,117410.0,0.21834993]
[1752258998158,0.48477385,117420.0,117410.0,0.21634993]
[1752258999327,0.46967385,117420.0,117410.0,0.21634993]
[1752259001070,0.48577385,117420.0,117410.0,0.21634993]
[1752259010403,0.02276,117420.0,117410.0,0.21634993]
[1752259010611,0.47180325,117420.0,117410.0,0.21634993]
[1752259010819,0.46967385,117420.0,117410.0,0.21634993]
[1752259011469,0.46967385,117420.0,117410.0,0.21839993]
[1752259011679,0.45106385,117420.0,117410.0,0.21839993]
[1752259011883,0.002,117420.0,117410.0,0.22158993]
[1752259012090,0.0041294,117420.0,117410.0,0.22158993]
[1752259012724,0.0062294,117420.0,117410.0,0.22158993]
[1752259013127,0.0062294,117420.0,117410.0,0.21839993]
[1752259013349,0.45314325,117420.0,117410.0,0.21839993]
[1752259013584,0.45101385,117420.0,117410.0,0.21839993]
[1752259014515,0.45101385,117420.0,117410.0,0.22158993]
[1752259015911,0.002,117420.0,117410.0,0.23808993]
[1752259016101,0.0041294,117420.0,117410.0,0.23808993]
[1752259016920,0.45104325,117420.0,117410.0,0.23808993]
[1752259017146,0.44891385,117420.0,117410.0,0.23808993]
[1752259017881,0.44891385,117420.0,117410.0,0.22158993]
[1752259019183,0.44891385,117420.0,117410.0,0.23808993]
[1752259021432,0.44891385,117420.0,117410.0,0.22158993]
[1752259024756,0.002,117420.0,117410.0,0.70050378]
[1752259025202,0.052,117420.0,117410.0,0.25358993]